Cogmind - Beta 16 @@@ ROGUE MODE // 2025.11.07 @ 22:39:08 Player: StaticNoob Result: Destroyed by C-57 Dissector with Dual-blade Saw Performance ------------- Evolutions (9) 4500 Regions Visited (25) 5000 Robots Destroyed (293) 1465 Value Destroyed (14319) 14319 Prototype IDs (15) 300 Alien Tech Used (0) 0 Bonus (13199) 13199 TOTAL SCORE: 38783 Bonus ------- High Alert Combat Kills 2589 Follower Combat Kills 3833 Entered Garrisons 1800 Used RIF Installer 4500 Scanned by Researcher 500 Friendly Fire -23 Cogmind --------- Core Integrity 0/1600 Matter 15/300 Energy 99/100 System Corruption 10% Temperature Cool (0) Movement Core (50) Location -1/Access Parts ------- > --- POWER (2) -------- (None) > --- PROPULSION (6) --- (None) > --- UTILITY (13) ----- Advanced Targeting Computer > --- WEAPON (4) ------- (None) > --- INVENTORY (5) ---- Improved Arc Projector Compact HERF Cannon Railgun Advanced Remote Datajack Peak State ------------ > --- POWER ------------ Light Quantum Reactor Improved Quantum Reactor > --- PROPULSION ------- Biometal Heavy Treads Biometal Heavy Treads Advanced Heavy Siege Treads > --- UTILITY ---------- Experimental Power Amplifier Advanced Heat Sink Medium Storage Unit Advanced Targeting Computer Advanced Target Analyzer Advanced Target Analyzer Heavy Armor Plating Graphene Brace Relay Coupler [NC] Relay Coupler [Sentry] Relay Coupler [Hunter] > --- WEAPON ----------- Enhanced Nova Cannon Railgun Railgun > --- INVENTORY -------- Light Antimatter Reactor Light Particle Reactor Advanced Point Defense System KE Penetrator Enhanced Coil Gun Railgun Gamma Bomb Array Tactical Quantum Warhead Advanced Remote Datajack [Rating: 157] Favorites ----------- Power Light Quantum Reactor Engine Hybrid Deuterium Engine Power Core Reinforced Fission Core Reactor Light Quantum Reactor Propulsion Light Treads Treads Light Treads Leg Myomer Leg Wheel Centrium Wheel Flight Unit Xenon Bombardment Thruster Utility High-capacity Storage Unit Device Advanced Weapon Cycler Storage High-capacity Storage Unit Processor Advanced Targeting Computer Hackware Relay Coupler [NC] Protection Hardened Medium Armor Plating Weapon Gauss Rifle Energy Gun Gatling Laser Energy Cannon Enhanced Nova Cannon Ballistic Gun Gauss Rifle Ballistic Cannon Light Cannon Launcher Gamma Bomb Array Special Weapon Advanced Remote Datajack Build | -11 -10 -10 -8 -8 -8 -8 -7 -7 -6 -6 -6 -6 -6 -6 -5 -5 -5 -5 -4 -4 -3 -3 -2 -2 -1 ------- Run | Yrd Mat Sub Mat Gar Mat Gar Fac Gar Fac Was Fac Gar Fac Gar Fac Gar Fac Gar Fac Gar Res Gar Res Tes Acc Slots Evolved 18 | . . . 4 . . . 2 . 2 . . . . . 2 . . . 2 . 2 . 2 . 2 Power 1 | . . . . . . . . . . . . . . . 1 . . . . . . . . . . Propulsion 4 | . . . 1 . . . . . . . . . . . . . . . 1 . 1 . 1 . . Utility 11 | . . . 2 . . . 2 . 2 . . . . . 1 . . . 1 . 1 . 1 . 1 Weapon 2 | . . . 1 . . . . . . . . . . . . . . . . . . . . . 1 Parts Attached 261 | 7 3 9 13 15 14 4 5 9 1 9 3 15 12 16 2 11 2 17 2 5 4 10 45 17 11 Power 30 | 2 . 2 1 . . . . 1 . . . 3 1 1 . 3 . 4 . 1 . 2 5 3 1 Engine 7 | 2 . 2 1 . . . . . . . . 2 . . . . . . . . . . . . . Core 4 | . . . . . . . . . . . . . . . . 3 . 1 . . . . . . . Reactor 19 | . . . . . . . . 1 . . . 1 1 1 . . . 3 . 1 . 2 5 3 1 Propulsion 60 | 2 1 2 3 5 5 . 1 4 . 2 . 1 1 3 . . . 1 1 1 1 1 10 6 9 Treads 37 | 2 1 2 1 5 4 . 1 4 . 1 . 1 1 2 . . . 1 1 1 . . 6 1 2 Leg 7 | . . . . . . . . . . . . . . . . . . . . . . 1 . 4 2 Wheel 12 | . . . 2 . 1 . . . . 1 . . . 1 . . . . . . 1 . 4 . 2 Hover . | . . . . . . . . . . . . . . . . . . . . . . . . . . Flight 4 | . . . . . . . . . . . . . . . . . . . . . . . . 1 3 Utility 100 | 1 1 1 6 6 5 1 3 . 1 4 2 7 6 6 2 5 2 6 . 3 2 4 23 3 . Device 40 | . . . 4 3 . . 2 . . . 1 2 4 1 1 2 . 2 . . 2 1 14 1 . Storage 5 | 1 1 1 . . 1 . . . . . . . . . . . . . . . . . 1 . . Processor 14 | . . . 1 1 1 1 . . . 1 1 1 . . . 1 . 2 . . . . 3 1 . Hackware 25 | . . . . . 1 . 1 . 1 1 . 2 1 5 1 1 2 2 . 2 . 2 3 . . Protection 16 | . . . 1 2 2 . . . . 2 . 2 1 . . 1 . . . 1 . 1 2 1 . Artifact . | . . . . . . . . . . . . . . . . . . . . . . . . . . Weapon 71 | 2 1 4 3 4 4 3 1 4 . 3 1 4 4 6 . 3 . 6 1 . 1 3 7 5 1 Energy Gun 4 | . . . 2 . . . . . . . . . . . . . . . . . . 1 . . 1 Energy Cannon 7 | . . 1 . . . . . 1 . 1 . . 1 . . . . . 1 . . . 2 . . Ballistic Gun 49 | 2 . 3 1 3 2 3 1 2 . 2 1 4 2 5 . 3 . 5 . . 1 2 3 4 . Ballistic Cannon 2 | . 1 . . 1 . . . . . . . . . . . . . . . . . . . . . Launcher 4 | . . . . . 1 . . . . . . . 1 . . . . . . . . . 1 1 . Special Weapon 5 | . . . . . 1 . . 1 . . . . . 1 . . . 1 . . . . 1 . . Impact Weapon . | . . . . . . . . . . . . . . . . . . . . . . . . . . Slashing Weapon . | . . . . . . . . . . . . . . . . . . . . . . . . . . Piercing Weapon . | . . . . . . . . . . . . . . . . . . . . . . . . . . Special Melee Weapon . | . . . . . . . . . . . . . . . . . . . . . . . . . . Unidentified Prototypes 11 | . . . . . . . . . . . . . 4 . . . . 2 . . . . 3 2 . Corrupted Parts 4 | . . . . . . . . . . . . . . . . . . . . . . 1 . 2 1 System Corruption 28 | . . . . . . . . . . . . . . . . . . . . . . 2 . 16 10 Parts Lost 131 | . 3 6 3 7 1 3 1 6 . . . 8 6 8 . 1 . 4 . 3 . 27 7 23 14 Power 15 | . 1 1 . . . . . . . . . 2 . 1 . . . . . 1 . 4 . 4 1 Propulsion 33 | . 1 2 3 1 . . . 3 . . . 1 . 1 . . . 1 . 1 . 3 2 6 8 Utility 47 | . . . . 4 . 1 . 2 . . . 2 4 3 . 1 . 3 . 1 . 11 5 6 4 Weapon 36 | . 1 3 . 2 1 2 1 1 . . . 3 2 3 . . . . . . . 9 . 7 1 Highest Loss Streak 27 | . 1 2 2 2 1 3 1 5 . . . 3 4 4 . 1 . 2 . 2 . 27 2 12 6 To Critical Strikes 2 | . . 1 . . . . . . . . . 1 . . . . . . . . . . . . . Average Backups 14 | . 3 5 8 17 19 19 19 18 19 19 19 18 17 15 11 17 18 18 18 17 19 14 7 8 4 Power 1 | . 1 2 3 3 2 2 2 2 2 1 1 . 1 . . . 2 1 2 1 1 . 1 1 . Propulsion 1 | . . . . 3 4 4 4 3 3 3 3 2 2 2 2 1 1 1 . . . . 1 . . Utility 6 | . . 1 2 4 7 9 8 8 9 9 10 9 8 6 5 9 8 8 8 9 11 9 2 1 . Weapon 3 | . 1 1 3 6 3 2 2 2 4 3 3 3 4 4 2 4 5 5 5 6 5 3 2 4 2 Tool/Special . | . . . . . . . . . . . . . . . . . . . . . . . . . . Unused Backups 34 | . . . . 5 4 1 . 1 . 2 . 1 1 3 . 1 . 4 1 . . 2 5 . 3 Power 7 | . . . . 3 . . . 1 . 1 . . . . . . . . . . . . 1 . 1 Propulsion 4 | . . . . . . . . . . 1 . . . . . . . 1 . . . . 2 . . Utility 15 | . . . . 1 2 1 . . . . . 1 . 2 . 1 . 3 1 . . 2 1 . . Weapon 8 | . . . . 1 2 . . . . . . . 1 1 . . . . . . . . 1 . 2 Tool/Special . | . . . . . . . . . . . . . . . . . . . . . . . . . . Average Slot Usage (%) 90 | . 95 99 88 99 100 99 99 97 83 88 93 91 91 92 87 92 94 92 87 88 85 67 83 67 20 Engine 4 | . 14 13 9 9 9 9 7 6 . . . 2 5 . . . . . . . . . . . . Reactor 3 | . . . . . . . . . 6 6 6 3 . 5 5 5 5 7 10 10 9 4 7 5 . Treads 13 | . 27 27 17 23 26 18 15 14 13 9 6 6 6 8 5 5 5 4 4 8 9 5 7 8 1 Wheel 3 | . . . 2 2 . 9 7 7 6 6 6 6 5 5 5 5 5 5 5 1 . 2 7 . 1 Device 12 | . . . 14 10 9 1 12 11 6 6 6 8 14 20 23 23 18 19 19 16 19 14 18 9 2 Storage 8 | . 24 28 10 9 9 9 7 7 6 6 6 6 6 6 5 5 5 5 5 5 4 3 4 5 . Processor 7 | . . . 5 9 9 16 15 15 13 12 13 13 11 3 . 4 5 7 10 10 9 8 3 8 4 Hackware 8 | . . . . . . . 3 5 3 8 13 13 12 18 22 14 15 14 15 15 14 15 17 11 4 Protection 4 | . . . 1 7 8 9 5 2 6 8 13 8 6 1 . 1 5 2 . 3 4 2 2 2 . Ballistic Gun 16 | . 24 14 15 23 26 27 18 20 13 16 20 19 15 16 17 14 13 16 10 10 12 7 9 8 . Ballistic Cannon 1 | . 4 9 . 2 . . . . . . . . . . . . . . . . . . . . . Special Weapon 1 | . . . . . . . 3 2 6 3 . . 3 2 . 1 3 . 4 5 1 . . . . Peak Build Rating 157 | 6 7 10 28 28 32 32 36 40 41 72 75 81 97 100 83 94 97 103 123 123 135 135 144 157 60 Average Rating 65 | 4 6 9 24 25 29 28 34 34 40 57 74 73 82 87 82 89 93 94 121 121 133 91 119 123 33 On Entrance 61 | . 6 7 10 27 26 32 30 35 40 41 72 75 81 96 82 83 94 94 101 123 123 135 14 128 53 Avg Prop Armor Cover (%) 11 | . . . 16 13 14 14 16 16 14 12 9 8 10 8 7 6 5 6 13 13 2 1 15 16 28 Naked Turns . | . . . . . . . . . . . . . . . . . . . . . . . . . . Heaviest Build 113 | 13 16 58 62 64 62 62 61 73 72 86 86 93 85 83 69 90 90 101 100 95 113 113 91 89 17 Greatest Support 230 | 40 40 40 60 60 62 16 16 16 16 16 16 70 16 70 28 35 28 28 28 145 145 145 80 230 150 Greatest Overweight (x) 23 | . . 2 5 6 3 3 3 4 4 5 5 5 5 5 2 3 3 3 3 3 1 23 8 4 3 Average Overweight (x) 2 | . . . 1 1 . 3 3 3 4 4 5 3 4 2 2 2 3 3 3 . . . 2 1 . Largest Inventory Capacity 20 | 8 8 20 20 20 20 20 20 20 20 20 20 20 20 20 20 20 20 20 20 20 20 20 10 10 10 Average Capacity 17 | 6 8 17 20 20 20 20 20 20 20 20 20 20 20 20 20 20 20 20 20 20 20 17 8 10 5 Most Carried 20 | 1 6 8 14 20 20 20 20 20 20 20 20 20 20 20 13 20 20 20 20 20 20 20 10 10 8 Average Carried 14 | . 3 5 8 17 19 19 19 18 19 19 20 19 19 17 12 18 19 19 19 17 19 14 8 8 4 Final Capacity 20 | 8 8 20 20 20 20 20 20 20 20 20 20 20 20 20 20 20 20 20 20 20 20 5 10 10 5 Final Carried 20 | 1 6 5 14 19 20 20 20 20 19 20 20 20 20 13 13 20 19 20 20 19 20 5 10 7 4 Class Distribution -------------------- 28% | Botlord-Tank 19% | Mutant 12% | Botlord-Gunner 11% | Scavenger-Tank 9% | Scavenger-Gunner 8% | Bothacker-Gunner 3% | Bothacker-Tank Dominant Class ---------------- Mutant | -10/Materials Mutant | -10/Subcaves Skirmisher | -8/Materials Scavenger-Tank | -8/Garrison Scavenger-Gunner | -8/Materials Bothacker-Gunner | -8/Garrison Bothacker-Gunner | -7/Factory Bothacker-Gunner | -7/Garrison Botlord-Gunner | -6/Factory Botlord-Gunner | -6/Waste Botlord-Tank | -6/Factory Botlord-Tank | -6/Garrison Botlord-Tank | -6/Factory Botlord-Tank | -6/Garrison Botlord-Tank | -5/Factory Botlord-Tank | -5/Garrison Botlord-Tank | -5/Factory Botlord-Gunner | -5/Garrison Botlord-Gunner | -4/Factory Botlord-Tank | -4/Garrison Botlord-Tank | -3/Research Mutant | -3/Garrison Scavenger-Tank | -2/Research Scavenger-Tank | -2/Testing Mutant | -1/Access Resources | -11 -10 -10 -8 -8 -8 -8 -7 -7 -6 -6 -6 -6 -6 -6 -5 -5 -5 -5 -4 -4 -3 -3 -2 -2 -1 ----------- Run | Yrd Mat Sub Mat Gar Mat Gar Fac Gar Fac Was Fac Gar Fac Gar Fac Gar Fac Gar Fac Gar Res Gar Res Tes Acc Matter Collected 11448 | 162 645 259 248 725 540 233 183 408 . 230 50 795 489 1276 . 924 76 916 269 493 296 479 934 731 87 Remotely 442 | . . . . . . . . . . . . . . . . . . . . . . 318 124 . . Salvage Created 12890 | . 510 346 521 1068 698 328 183 313 . . 63 709 731 695 . 398 . 952 326 646 422 399 2062 1440 80 Parts 687 | . 32 21 27 75 41 30 9 18 . . 4 38 35 39 . 16 . 33 20 32 25 18 115 57 2 Haulers Intercepted 3 | . . . 1 . 1 . . . . . . . 1 . . . . . . . . . . . . Recyclers Shooed 5 | . 1 . 1 . 1 . . . . . . . . . . . . . . . . . 2 . . Parts Field Recycled . | . . . . . . . . . . . . . . . . . . . . . . . . . . Retrieved Matter . | . . . . . . . . . . . . . . . . . . . . . . . . . . Parts Self-Destructed 9 | . . 9 . . . . . . . . . . . . . . . . . . . . . . . Prevented . | . . . . . . . . . . . . . . . . . . . . . . . . . . Parts Restored . | . . . . . . . . . . . . . . . . . . . . . . . . . . Kills | -11 -10 -10 -8 -8 -8 -8 -7 -7 -6 -6 -6 -6 -6 -6 -5 -5 -5 -5 -4 -4 -3 -3 -2 -2 -1 ------- Run | Yrd Mat Sub Mat Gar Mat Gar Fac Gar Fac Was Fac Gar Fac Gar Fac Gar Fac Gar Fac Gar Res Gar Res Tes Acc Combat Hostiles Destroyed 237 | . 15 10 10 30 14 13 4 15 . . 2 20 11 11 . 5 . 12 3 14 5 6 19 16 2 Guns 179 | . 11 5 8 26 12 13 3 4 . . 2 13 7 10 . 5 . 12 3 14 5 6 12 6 2 Cannons 19 | . 3 5 . 4 . . 1 1 . . . . . . . . . . . . . . 1 4 . AOE 35 | . 1 . 1 . 2 . . 10 . . . 7 4 . . . . . . . . . 4 6 . Classes Destroyed 21 | . 6 . 4 1 . 1 . . . . . 1 3 1 . . . 1 . . 1 1 . 1 . Worker 17 | . 1 . 1 . 2 . . . . . . . 1 . . . . . 2 . 2 . 5 3 . Builder 14 | . 1 . . . 1 . . . . . . . . . . . . . . . . . 6 6 . Tunneler 1 | . . . . . . . . . . . . . . . . . . . . . 1 . . . . Hauler 3 | . . . 1 . 1 . . . . . . . 1 . . . . . . . . . . . . Recycler 9 | . . . 1 . 1 . . . . . . . . . . . . . . . . . 4 3 . Watcher 6 | . 3 . 1 . 1 . . . . . . . . . . . . . . . . . 1 . . Swarmer 75 | . 6 . 3 13 5 9 . 11 . . 1 10 1 . . . . 2 . 7 . . 5 . 2 Saboteur 1 | . . . . . . . . . . . . . 1 . . . . . . . . . . . . Grunt 70 | . 8 3 3 6 7 . 3 2 . . 1 6 . 3 . 4 . 7 1 5 3 2 . 6 . Brawler 4 | . . . . . . . . . . . . 1 . 1 . . . . 1 1 . . . . . Duelist 1 | . . . . . . . . . . . . . . . . . . . . . . 1 . . . Protector 1 | . . . . . . . . . . . . . 1 . . . . . . . . . . . . Researcher 1 | . . . . . . . . . . . . . . . . . . . . . . . . 1 . Sentry 33 | . . . 2 8 2 1 1 1 . . . 3 . 1 . 2 . 4 1 . 1 1 3 2 . Specialist 4 | . . . . 1 . . . . . . . . 1 1 . . . . . . . . 1 . . Hunter 21 | . . . 2 2 . . . 1 . . . . 3 2 . . . 1 . 1 . . 2 7 . Programmer 21 | . . . . . . 3 . . . . . . 3 2 . . . . 1 . 1 2 8 1 . Heavy 1 | . . . . . . . . . . . . . 1 . . . . . . . . . . . . Behemoth 1 | . . . . . . . . . . . . . . 1 . . . . . . . . . . . Executioner 1 | . . . . . . . . . . . . . . . . . . 1 . . . . . . . Subdweller 8 | . 1 7 . . . . . . . . . . . . . . . . . . . . . . . Best Kill Streak 14 | . 4 2 5 4 5 6 3 12 . . 1 5 7 3 . 3 . 3 2 11 3 4 14 14 2 Combat Bots Only 12 | . 3 2 3 4 5 6 3 12 . . 1 5 7 3 . 3 . 3 1 11 3 4 7 5 2 Max Kills in Single Turn 5 | . 2 1 1 2 4 2 1 5 . . 1 3 3 1 . 1 . 3 1 2 2 2 4 5 1 Gunslinging 1 | . . . . 1 1 1 . . . . . . . . . . . . . 1 . 1 1 . . Exploded 5 | . 1 . 1 . 1 . . 5 . . . 3 3 . . . . . . . . . 3 2 . Melee . | . . . . . . . . . . . . . . . . . . . . . . . . . . Uniques/NPCs Destroyed . | . . . . . . . . . . . . . . . . . . . . . . . . . . Combat | -11 -10 -10 -8 -8 -8 -8 -7 -7 -6 -6 -6 -6 -6 -6 -5 -5 -5 -5 -4 -4 -3 -3 -2 -2 -1 -------- Run | Yrd Mat Sub Mat Gar Mat Gar Fac Gar Fac Was Fac Gar Fac Gar Fac Gar Fac Gar Fac Gar Res Gar Res Tes Acc Hostile Shots Fired 2517 | . 80 64 45 134 68 72 62 83 . . 3 281 84 182 2 43 . 74 18 74 30 271 334 285 228 Missed 820 | . 21 17 12 36 16 19 27 27 . . 1 82 35 63 1 12 . 26 8 30 8 77 130 93 79 Hits 1697 | . 59 47 33 98 52 53 35 56 . . 2 199 49 119 1 31 . 48 10 44 22 194 204 192 149 Melee 29 | . . . . . . . . . . . . . . 1 . . . . . . . 10 . . 18 Projectile 1668 | . 59 47 33 98 52 53 35 56 . . 2 199 49 118 1 31 . 48 10 44 22 184 204 192 131 AOE 4 | . . . . . . . . . . . . . . 3 . . . . . . . . . . 1 Critical Strikes 70 | . 1 2 1 2 2 3 . . . 1 . 4 2 2 . 1 . 3 1 . 1 15 4 12 13 Actively Blocked 39 | . . . . . . . . . . . . . . 2 . . . 1 1 . 1 15 4 12 3 Part Disruptions 3 | . . . 1 . . . . . . . . . . 1 . . . . . . 1 . . . . Damage Taken 28465 | . 714 802 455 1293 702 514 347 648 . 40 49 2145 1623 1634 10 441 . 825 271 737 202 4339 2563 4468 3643 Core 5330 | . 87 97 57 150 78 126 50 80 . . 15 235 252 217 . 27 . 148 19 110 18 1239 133 582 1610 Absorbed by Shields 2397 | . . . . 19 . 41 18 5 . . . 391 121 497 4 167 . 135 . . 211 77 711 . . Reduced by Siege Mode 12 | . . . . . . . . . . . . . . . . . . . . . . . . 12 . Ignored by Resistances 362 | . . . . . . . . . . . . . . . 5 134 . 4 . . 77 142 . . . Regen/Repaired (Parts) 1174 | . 128 . . . . . . . . 547 1 163 163 . . . . . . . 172 . . . . Core Remaining (%) 52 | 100 . 26 . . . 25 . 81 . . . . . 15 . . . 82 . 88 . 3 . 50 . Volleys Fired 858 | . 71 35 32 68 41 25 26 23 1 8 4 56 32 90 . 34 6 57 19 49 17 42 66 51 5 Largest 3 | . 2 2 3 3 3 3 3 3 1 3 3 3 3 3 . 3 2 3 3 2 3 3 3 3 1 Hottest 190 | . 50 100 180 133 74 74 123 113 5 89 91 94 113 98 . 84 56 89 113 66 101 176 190 190 30 Shots Fired 1895 | . 142 67 92 198 109 75 46 49 1 10 12 131 62 185 . 74 7 164 35 87 43 63 141 97 5 Gun 1612 | . 135 41 91 174 102 75 28 38 . 3 12 116 48 156 . 64 2 161 28 78 39 48 109 59 5 Cannon 116 | . 7 26 1 24 . . 2 3 . . . . . . . . . . 1 . . 7 23 22 . Launcher 39 | . . . . . 3 . . 6 . . . 5 4 3 . . . . 5 . . . 8 5 . Special 128 | . . . . . 4 . 16 2 1 7 . 10 10 26 . 10 5 3 1 9 4 8 1 11 . Kinetic 1620 | . 142 65 56 187 102 75 28 38 . 3 12 116 48 156 . 64 2 161 28 78 39 47 109 59 5 Thermal 107 | . . 2 36 11 . . 2 3 . . . . . . . . . . 1 . . 7 23 22 . Explosive 18 | . . . . . 3 . . 6 . . . 5 . . . . . . . . . . . 4 . Electromagnetic 22 | . . . . . . . . . . . . . 4 3 . . . . 5 . . 1 8 1 . Robot Hit Streak 29 | . 15 8 16 20 15 13 29 12 11 14 2 14 11 16 . 8 9 18 9 8 6 18 11 6 4 Robot Miss Streak 8 | . 3 2 3 5 2 2 4 6 . 1 1 3 4 5 . 3 . 8 1 3 2 2 7 6 1 Penetration Max 1 | . . . . 1 . . . . . . . . 1 1 . 1 . 1 1 1 1 1 1 1 . Secondary Targets 38 | . . . 1 4 4 3 1 . . . . 3 1 1 . 1 . 3 1 5 2 2 4 2 . Max Gunslinging Chain 1 | . . . 1 1 1 1 1 . . . . 1 1 1 . 1 . 1 1 1 1 1 1 1 . Shots Hit Robots 1263 | . 90 43 56 126 81 51 43 33 1 7 6 99 42 125 . 45 7 104 22 52 28 50 92 56 4 Core Hits 620 | . 36 20 30 60 33 23 16 39 . . 3 41 38 31 . 15 1 42 13 28 19 20 57 52 3 Critical Kills 36 | . 1 . . . 2 2 1 . . . . 2 4 2 . 1 . 1 2 1 3 2 6 6 . Critical Parts Destroyed 30 | . 1 . 1 1 1 1 1 1 . . . 5 7 6 . . . 1 . . 1 . 2 1 . Critical Strikes 74 | . 2 . 1 2 3 3 2 1 . . . 7 12 13 . 1 . 2 2 1 4 2 8 8 . Destroy 73 | . 2 . 1 1 3 3 2 1 . . . 7 12 13 . 1 . 2 2 1 4 2 8 8 . Blast 1 | . . . . 1 . . . . . . . . . . . . . . . . . . . . . Melee Attacks . | . . . . . . . . . . . . . . . . . . . . . . . . . . Impact . | . . . . . . . . . . . . . . . . . . . . . . . . . . Slashing . | . . . . . . . . . . . . . . . . . . . . . . . . . . Piercing . | . . . . . . . . . . . . . . . . . . . . . . . . . . Sneak Attacks . | . . . . . . . . . . . . . . . . . . . . . . . . . . Combat Hostiles . | . . . . . . . . . . . . . . . . . . . . . . . . . . Follow-up Attacks . | . . . . . . . . . . . . . . . . . . . . . . . . . . Damage Inflicted 29182 | . 992 598 984 1933 1709 753 420 1202 . 38 148 2224 1411 2123 . 819 39 2557 638 1159 709 1335 3648 3622 121 Guns 21153 | . 876 333 944 1688 1219 753 367 411 . 38 148 1714 492 1967 . 819 39 2557 524 1159 709 1145 2139 997 115 Cannons 2218 | . 116 265 . 245 . . 53 55 . . . . . . . . . . . . . 190 597 697 . Explosions 5805 | . . . 40 . 490 . . 736 . . . 510 919 156 . . . . 114 . . . 912 1928 . Melee . | . . . . . . . . . . . . . . . . . . . . . . . . . . Ramming 6 | . . . . . . . . . . . . . . . . . . . . . . . . . 6 Kinetic 20867 | . 992 572 255 1736 1219 753 367 411 . 38 148 1714 492 1967 . 819 39 2557 524 1159 709 1145 2139 997 115 Thermal 3177 | . . 26 689 197 . . 53 55 . . . . . . . . . . . . . 190 797 1170 . Explosive 3149 | . . . . . 490 . . 736 . . . 510 70 . . . . . . . . . . 1343 . Electromagnetic 1983 | . . . 40 . . . . . . . . . 849 156 . . . . 114 . . . 712 112 . Impact . | . . . . . . . . . . . . . . . . . . . . . . . . . . Slashing . | . . . . . . . . . . . . . . . . . . . . . . . . . . Piercing . | . . . . . . . . . . . . . . . . . . . . . . . . . . Highest Corruption 30 | . 1 1 . . . 1 . . . . 5 5 13 19 . . . 1 2 2 3 17 12 30 10 Average Corruption 5 | . 1 1 . . . 1 . . . . 5 5 6 17 . . . 1 1 2 2 9 6 19 10 Corruption Purged 5 | . . . . . . . . . . . . . . . . . . . . . . . 5 . . Corruption Blocked . | . . . . . . . . . . . . . . . . . . . . . . . . . . Effects 240 | . 6 14 . . . 3 . . . . 3 30 33 58 . . . 10 2 8 2 12 25 28 6 Message Errors 47 | . 1 4 . . . 1 . . . . 2 5 10 9 . . . 5 . . 1 . 4 3 2 Matter Fused 58 | . 2 4 . . . 1 . . . . . 9 6 17 . . . 1 . 1 . 4 6 6 1 Heat Flow Errors 20 | . . 2 . . . . . . . . . 3 2 4 . . . . 1 2 1 . 2 3 . Energy Discharges 34 | . 1 3 . . . . . . . . . 3 5 7 . . . 3 . 2 . 1 2 6 1 Parts Rejected 6 | . . . . . . . . . . . . . 1 . . . . . 1 1 . . 1 1 1 Parts Fused 4 | . . . . . . . . . . . . 1 . 1 . . . . . . . . 2 . . Data Loss (minor) 26 | . 1 . . . . . . . . . 1 5 4 5 . . . . . 1 . 1 6 2 . Data Loss (major) 12 | . . 1 . . . . . . . . . 1 1 5 . . . . . 1 . . 1 1 1 Misfires 10 | . . . . . . 1 . . . . . 3 2 2 . . . 1 . . . 1 . . . Alerts 3 | . 1 . . . . . . . . . . . . 1 . . . . . . . . . 1 . Misdirections 4 | . . . . . . . . . . . . . . 2 . . . . . . . 1 . 1 . Weapon Failures 16 | . . . . . . . . . . . . . 2 5 . . . . . . . 4 1 4 . Overload Shots . | . . . . . . . . . . . . . . . . . . . . . . . . . . Overflow Damage 233 | . . . . . 5 . . 20 . . . 61 . . . . . . . . . . 47 100 . Projectiles 47 | . . . . . . . . . . . . . . . . . . . . . . . 47 . . Explosions 186 | . . . . . 5 . . 20 . . . 61 . . . . . . . . . . . 100 . Melee . | . . . . . . . . . . . . . . . . . . . . . . . . . . Knockbacks 4 | . 1 3 . . . . . . . . . . . . . . . . . . . . . . . Impact . | . . . . . . . . . . . . . . . . . . . . . . . . . . Kinetic 4 | . 1 3 . . . . . . . . . . . . . . . . . . . . . . . Secondary . | . . . . . . . . . . . . . . . . . . . . . . . . . . Self-Inflicted Damage 601 | . . . 43 . . . . 44 . . . 68 76 110 . . . . 25 . . . 33 199 3 Shots 31 | . . . 1 . . . . 1 . . . 2 7 9 . . . . 2 . . . 3 6 . Rammed 1 | . . . . . . . . . . . . . . . . . . . . . . . . . 1 Targets Rammed 1 | . . . . . . . . . . . . . . . . . . . . . . . . . 1 Kicked . | . . . . . . . . . . . . . . . . . . . . . . . . . . Crushed . | . . . . . . . . . . . . . . . . . . . . . . . . . . Highest Temperature 430 | . 38 204 260 30 . 28 2 10 . . 2 180 210 188 . 6 . 198 161 237 257 430 307 273 . Average Temperature 77 | . 13 77 76 13 . 9 2 6 . . 2 30 44 55 . 4 . 98 39 69 91 192 89 91 . Received Heat Transfer 4018 | . 327 246 63 468 315 49 135 66 . 27 9 360 78 209 6 141 . 259 9 129 33 576 45 333 135 Effects 1 | . . . . . . . . . . . . . . . . . . . . . . 1 . . . Matter Decay 1 | . . . . . . . . . . . . . . . . . . . . . . 1 . . . Siege Activations 1 | . . . . . . . . . . . . . . . . . . . . . . . . 1 . Total Turns 5 | . . . . . . . . . . . . . . . . . . . . . . . . 5 . Longest Duration 5 | . . . . . . . . . . . . . . . . . . . . . . . . 5 . Martial Activations . | . . . . . . . . . . . . . . . . . . . . . . . . . . Shielding Activations . | . . . . . . . . . . . . . . . . . . . . . . . . . . Robots Disrupted . | . . . . . . . . . . . . . . . . . . . . . . . . . . Combat Hostiles . | . . . . . . . . . . . . . . . . . . . . . . . . . . Robots Corrupted 4 | . . . . . . . . . . . . . 1 1 . . . . . . . . 2 . . Combat Hostiles 3 | . . . . . . . . . . . . . . 1 . . . . . . . . 2 . . Parts Fried 11 | . . . . . . . . . . . . . 6 1 . . . 1 . . . . 3 . . Impact Corruptions . | . . . . . . . . . . . . . . . . . . . . . . . . . . Robots Melted 1 | . . . 1 . . . . . . . . . . . . . . . . . . . . . . Combat Hostiles 1 | . . . 1 . . . . . . . . . . . . . . . . . . . . . . Parts Melted 10 | . . . 4 . 1 1 . . . . . . . 1 . . . 1 . . . . 1 1 . Heat Transferred 4142 | . . 37 1550 412 . . 74 74 . . . . . . . . . . . . . 185 718 1092 . Parts Sabotaged 3 | . . . . . . . . . . . . . . 3 . . . . . . . . . . . Parts Stolen . | . . . . . . . . . . . . . . . . . . . . . . . . . . Parts Stripped . | . . . . . . . . . . . . . . . . . . . . . . . . . . Power Chain Reactions 4 | . . . . . . . . . . . . . . . . . . . . . . . 1 3 . Alert | -11 -10 -10 -8 -8 -8 -8 -7 -7 -6 -6 -6 -6 -6 -6 -5 -5 -5 -5 -4 -4 -3 -3 -2 -2 -1 ------- Run | Yrd Mat Sub Mat Gar Mat Gar Fac Gar Fac Was Fac Gar Fac Gar Fac Gar Fac Gar Fac Gar Res Gar Res Tes Acc Maximum Alert Level 5 | . . . . 3 2 3 2 3 2 . 2 3 3 3 2 4 3 5 4 4 2 2 1 2 2 Low Security (%) 30 | 100 100 . 100 8 . . . . . 100 50 . . . . . . . . . . . 88 74 . Level 1 16 | . . . . 23 14 . 96 34 . . 23 16 52 . . 13 29 10 . . . 75 11 14 83 Level 2 27 | . . . . 47 85 80 3 21 100 . 26 46 35 17 100 33 32 13 . . 100 24 . 11 16 Level 3 17 | . . . . 20 . 19 . 43 . . . 36 12 82 . 22 38 3 55 72 . . . . . Level 4 5 | . . . . . . . . . . . . . . . . 30 . 30 44 27 . . . . . Level 5 3 | . . . . . . . . . . . . . . . . . . 41 . . . . . . . High Security . | . . . . . . . . . . . . . . . . . . . . . . . . . . Max Security . | . . . . . . . . . . . . . . . . . . . . . . . . . . Peak Influence 2133 | . 95 . 152 882 642 736 427 798 418 142 547 922 727 939 492 1261 758 2133 1213 1138 639 430 339 577 434 Initial 1119 | . . . . 98 429 416 386 293 418 142 . 376 462 492 492 316 661 332 1119 762 639 375 235 186 324 Average 502 | . 28 . 37 509 472 605 334 537 414 26 240 644 416 803 474 788 598 1401 1095 1008 552 383 102 208 347 Influence Increases 13372 | . 406 70 371 854 714 350 269 605 . 60 848 846 748 707 . 995 269 1901 340 586 204 354 607 843 425 Destroy 0b10 Robot/C 6740 | . 280 60 200 600 420 260 160 380 . . 360 480 400 360 . 440 100 700 140 380 100 160 380 340 40 Destroy 0b10 Robot/NC 350 | . 25 . 20 5 30 . 5 . . . 10 . 45 . . . 10 10 25 . 15 . 80 70 . Destroy Leader 846 | . 56 10 64 20 104 10 40 30 . . 52 40 88 30 . 30 10 30 30 30 30 20 72 40 10 Allied During Kill 2209 | . . . . . 54 . 50 50 . . 396 77 106 41 . 411 120 737 95 56 . 6 . 10 . Successful Hack 208 | . 30 . 24 14 . . 14 14 . . . 14 14 . . . . 14 . . 42 14 . 14 . Disable Machine 285 | . . . 45 . 60 . . 15 . . . . 45 . . . 15 30 . . . . . 75 . Anti-Garrison Action 900 | . . . . 150 . 50 . 100 . . . 100 . 150 . 100 . 150 . 100 . . . . . Destroy Structure 979 | . . . 3 20 16 . . 16 . 60 30 60 20 66 . 14 14 230 50 20 2 4 60 294 . Partial Spotted 15 | . . . . . . . . . . . . . . . . . . . . . . . 15 . . Lose Combat Pursuer 840 | . 15 . 15 45 30 30 . . . . . 75 30 60 . . . . . . 15 150 . . 375 Influence Decreases 13033 | . 405 71 219 124 955 255 586 226 390 468 310 502 926 472 487 186 1055 243 1384 537 841 436 695 633 627 Entered New Map 6487 | . . 1 . 54 453 225 350 126 380 266 . 162 420 212 447 136 600 143 1014 327 499 126 184 145 217 Time Decay 3587 | . 385 56 189 . 392 . 206 . 10 182 270 . 386 . 40 . 80 . 180 . 342 . 461 238 170 Search Patrol Dispatched 100 | . . . . . . . . . . . . . . . . . . . . . . . . . 100 Lost Part 1234 | . 20 14 30 70 10 30 10 60 . . . 80 60 80 . 10 . 40 . 30 . 270 50 230 140 Lost Ally 1100 | . . . . . 100 . 20 40 . 20 40 260 60 180 . 40 . 60 40 180 . 40 . 20 . Purge Threat 525 | . . . . . . . . . . . . . . . . . 375 . 150 . . . . . . Squads Dispatched 41 | . 1 . 1 . 6 . 4 . . . 4 . 7 . . . 1 . 2 . 2 . 6 5 2 Investigation 5 | . 1 . . . 1 . . . . . . . . . . . 1 . 1 . 1 . . . . Extermination 9 | . . . . . . . 1 . . . 1 . 2 . . . . . . . . . 4 1 . Reinforcement 15 | . . . . . 2 . 2 . . . 1 . 2 . . . . . . . . . 2 4 2 Assault 4 | . . . . . . . . . . . . . 2 . . . . . 1 . 1 . . . . Garrison 8 | . . . 1 . 3 . 1 . . . 2 . 1 . . . . . . . . . . . . Intercept . | . . . . . . . . . . . . . . . . . . . . . . . . . . Searches Triggered 1 | . . . . . . . . . . . . . . . . . . . . . . . . . 1 Construction Impeded 2 | . . . . . . . 1 . . . . . 1 . . . . . . . . . . . . Haulers Reinforced 1 | . . . . . . . . . . . . . . . . . . . . . . . . 1 . Active Scanning Responses . | . . . . . . . . . . . . . . . . . . . . . . . . . . Cargo Convoy Interrupts 1 | . . . . . . . . . . . . . 1 . . . . . . . . . . . . Stealth | -11 -10 -10 -8 -8 -8 -8 -7 -7 -6 -6 -6 -6 -6 -6 -5 -5 -5 -5 -4 -4 -3 -3 -2 -2 -1 --------- Run | Yrd Mat Sub Mat Gar Mat Gar Fac Gar Fac Was Fac Gar Fac Gar Fac Gar Fac Gar Fac Gar Res Gar Res Tes Acc Distress Signals 19 | . 1 . 1 . 2 . . . . . 4 . 3 . . . . 2 . . 1 . . 1 4 Communications Jammed 36 | . . . . . . . . . . . . . . . . . . . . . . . 12 20 4 Distress Signals 36 | . . . . . . . . . . . . . . . . . . . . . . . 12 20 4 Times Spotted 501 | . 26 10 12 32 27 16 8 19 1 3 8 39 34 33 3 21 6 36 8 22 12 27 29 27 42 Peak Tracking Total 14 | . 4 2 3 4 5 5 3 11 1 2 4 8 11 6 3 5 3 7 4 5 6 13 6 6 14 Tactical Retreats 31 | . 3 . 1 2 2 1 . . . . . 5 2 3 . . . . . . 1 3 . . 8 Traps | -11 -10 -10 -8 -8 -8 -8 -7 -7 -6 -6 -6 -6 -6 -6 -5 -5 -5 -5 -4 -4 -3 -3 -2 -2 -1 ------- Run | Yrd Mat Sub Mat Gar Mat Gar Fac Gar Fac Was Fac Gar Fac Gar Fac Gar Fac Gar Fac Gar Res Gar Res Tes Acc Traps Triggered 51 | . 2 . . 3 1 1 1 6 1 . 1 2 4 5 . 6 . 8 2 3 . . 5 . . Indirectly 5 | . . . . . . . . . . . . . 3 . . . . . 2 . . . . . . Trap Hack Attempts . | . . . . . . . . . . . . . . . . . . . . . . . . . . Triggered . | . . . . . . . . . . . . . . . . . . . . . . . . . . Disarmed . | . . . . . . . . . . . . . . . . . . . . . . . . . . Reprogrammed . | . . . . . . . . . . . . . . . . . . . . . . . . . . Reused . | . . . . . . . . . . . . . . . . . . . . . . . . . . Traps Extracted . | . . . . . . . . . . . . . . . . . . . . . . . . . . Installed . | . . . . . . . . . . . . . . . . . . . . . . . . . . Triggered . | . . . . . . . . . . . . . . . . . . . . . . . . . . Machines | -11 -10 -10 -8 -8 -8 -8 -7 -7 -6 -6 -6 -6 -6 -6 -5 -5 -5 -5 -4 -4 -3 -3 -2 -2 -1 ---------- Run | Yrd Mat Sub Mat Gar Mat Gar Fac Gar Fac Was Fac Gar Fac Gar Fac Gar Fac Gar Fac Gar Res Gar Res Tes Acc Machines Disabled 37 | . . . 3 2 4 1 . 3 . . . 2 3 3 . 4 1 4 . 2 . . . 5 . Max in Single Turn 3 | . . . 1 1 2 1 . 1 . . . 1 3 1 . 1 . 1 . 1 . . . 1 . Garrison Access 2 | . . . . . . . . . . . . . 1 . . . . . . . . . . . 1 Garrison Relay 15 | . . . . 2 . 1 . 2 . . . 2 . 3 . 2 . 1 . 2 . . . . . Machines Repaired . | . . . . . . . . . . . . . . . . . . . . . . . . . . Machines Dismantled 3 | . . . . . . . . 2 . . . . . . . . . 1 . . . . . . . Machines Sabotaged . | . . . . . . . . . . . . . . . . . . . . . . . . . . Overloaded Fab Kills . | . . . . . . . . . . . . . . . . . . . . . . . . . . Hacking | -11 -10 -10 -8 -8 -8 -8 -7 -7 -6 -6 -6 -6 -6 -6 -5 -5 -5 -5 -4 -4 -3 -3 -2 -2 -1 --------- Run | Yrd Mat Sub Mat Gar Mat Gar Fac Gar Fac Was Fac Gar Fac Gar Fac Gar Fac Gar Fac Gar Res Gar Res Tes Acc Machines Accessed 56 | . 8 . 3 1 4 2 4 1 . . 3 1 2 . 1 . 3 2 3 1 7 1 3 1 5 Terminals 36 | . 7 . . 1 2 2 2 1 . . 2 1 . . . . 2 2 1 1 5 1 1 1 4 Fabricators 1 | . . . . . . . . . . . . . . . . . . . 1 . . . . . . Repair Stations 3 | . 1 . . . . . . . . . . . 1 . . . . . . . 1 . . . . Recycling Units 2 | . . . . . 1 . . . . . . . . . . . . . . . . . 1 . . Scanalyzers 4 | . . . 2 . . . 1 . . . . . . . . . . . . . . . 1 . . Garrison Access 10 | . . . 1 . 1 . 1 . . . 1 . 1 . 1 . 1 . 1 . 1 . . . 1 Total Hacks 105 | . 23 . 9 2 8 4 4 2 . . 4 3 3 . 2 . 5 3 6 3 10 1 4 3 6 Successful 45 | . 11 . 4 1 6 . 2 2 . . 1 1 3 . 1 . 1 1 3 . 5 1 . 1 1 Failed 59 | . 12 . 4 1 2 4 2 . . . 3 2 . . 1 . 4 2 3 3 5 . 4 2 5 Catastrophic 14 | . 4 . . . . . . . . . 1 . . . . . 1 . 2 1 1 . 2 1 1 Database Lockouts 1 | . . . 1 . . . . . . . . . . . . . . . . . . . . . . Manual 38 | . 13 . . 1 5 . 2 1 . . . 1 . . 1 . 3 . 1 . 5 . 1 2 2 Terminals 69 | . 21 . . 2 6 4 2 2 . . 3 3 . . . . 2 3 2 3 6 1 1 3 5 Fabricators 2 | . . . . . . . . . . . . . . . . . . . 2 . . . . . . Repair Stations 6 | . 2 . . . . . . . . . . . 2 . . . . . . . 2 . . . . Recycling Units 2 | . . . . . 1 . . . . . . . . . . . . . . . . . 1 . . Scanalyzers 11 | . . . 8 . . . 1 . . . . . . . . . . . . . . . 2 . . Garrison Access 15 | . . . 1 . 1 . 1 . . . 1 . 1 . 2 . 3 . 2 . 2 . . . 1 Terminal Hacks 11 | . 3 . . 1 1 . . 1 . . . 1 . . . . . 1 1 . 1 1 . . . Prototype ID Bank 1 | . 1 . . . . . . . . . . . . . . . . . . . . . . . . Open DSF 1 | . . . . . . . . . . . . . . . . . . . . . 1 . . . . Level Access Points 1 | . 1 . . . . . . . . . . . . . . . . . . . . . . . . Emergency Access Points 3 | . . . . 1 . . . . . . . . . . . . . 1 . . . 1 . . . Unreport Threat 1 | . . . . . . . . . . . . . . . . . . . 1 . . . . . . Locate Traps 2 | . 1 . . . 1 . . . . . . . . . . . . . . . . . . . . Patrol Navigation 2 | . . . . . . . . 1 . . . 1 . . . . . . . . . . . . . Fabricator Hacks 1 | . . . . . . . . . . . . . . . . . . . 1 . . . . . . Network Status 1 | . . . . . . . . . . . . . . . . . . . 1 . . . . . . Repair Station Hacks 4 | . 2 . . . . . . . . . . . 2 . . . . . . . . . . . . Scan Component 2 | . 1 . . . . . . . . . . . 1 . . . . . . . . . . . . Repair 2 | . 1 . . . . . . . . . . . 1 . . . . . . . . . . . . Recycling Unit Hacks 1 | . . . . . 1 . . . . . . . . . . . . . . . . . . . . Retrieve Components 1 | . . . . . 1 . . . . . . . . . . . . . . . . . . . . Scanalyzer 3 | . . . 3 . . . . . . . . . . . . . . . . . . . . . . Retrieve Study 3 | . . . 3 . . . . . . . . . . . . . . . . . . . . . . Garrison Access Hacks 10 | . . . 1 . 1 . 1 . . . 1 . 1 . 1 . 1 . 1 . 1 . . . 1 Unlock Access 9 | . . . 1 . 1 . 1 . . . 1 . 1 . 1 . 1 . 1 . 1 . . . . Seal Access 1 | . . . . . . . . . . . . . . . . . . . . . . . . . 1 Unauthorized Hacks 15 | . 6 . . . 3 . 1 1 . . . . . . . . . . . . 3 . . 1 . Terminals 13 | . 6 . . . 3 . 1 1 . . . . . . . . . . . . 1 . . 1 . Botnet 6 | . 1 . . . 1 . 1 1 . . . . . . . . . . . . 1 . . 1 . Skim 7 | . 5 . . . 2 . . . . . . . . . . . . . . . . . . . . Fabricators . | . . . . . . . . . . . . . . . . . . . . . . . . . . Repair Stations 1 | . . . . . . . . . . . . . . . . . . . . . 1 . . . . Patch 1 | . . . . . . . . . . . . . . . . . . . . . 1 . . . . Recycling Units . | . . . . . . . . . . . . . . . . . . . . . . . . . . Scanalyzers . | . . . . . . . . . . . . . . . . . . . . . . . . . . Garrison Access 1 | . . . . . . . . . . . . . . . . . . . . . 1 . . . . Reprogram 1 | . . . . . . . . . . . . . . . . . . . . . 1 . . . . Data Cores Recovered 2 | . . . . . . . . . . . 1 . . . . . 1 . . . . . . . . Used . | . . . . . . . . . . . . . . . . . . . . . . . . . . Hacking Detections 45 | . 7 . 1 1 2 2 3 1 . . 2 1 1 . 1 . 3 2 3 1 6 . 3 1 4 Full Trace Events 3 | . 1 . . . . . . . . . . . . . . . 1 . 1 . . . . . . Feedback Events . | . . . . . . . . . . . . . . . . . . . . . . . . . . Feedback Blocked . | . . . . . . . . . . . . . . . . . . . . . . . . . . Robot Schematics Acquired . | . . . . . . . . . . . . . . . . . . . . . . . . . . Robots Built . | . . . . . . . . . . . . . . . . . . . . . . . . . . Authchips . | . . . . . . . . . . . . . . . . . . . . . . . . . . Time . | . . . . . . . . . . . . . . . . . . . . . . . . . . Total Robot Build Rating . | . . . . . . . . . . . . . . . . . . . . . . . . . . Part Schematics Acquired 1 | . . . . . . . . . . . . . . . . . . . . . . . . 1 . Parts Built . | . . . . . . . . . . . . . . . . . . . . . . . . . . Authchips . | . . . . . . . . . . . . . . . . . . . . . . . . . . Time . | . . . . . . . . . . . . . . . . . . . . . . . . . . Total Part Build Rating . | . . . . . . . . . . . . . . . . . . . . . . . . . . Part Studies Acquired 3 | . . . 3 . . . . . . . . . . . . . . . . . . . . . . Parts Repaired 2 | . 1 . . . . . . . . . . . 1 . . . . . . . . . . . . Time 57 | . 26 . . . . . . . . . . . 31 . . . . . . . . . . . . Parts Recycled . | . . . . . . . . . . . . . . . . . . . . . . . . . . Recycled Matter . | . . . . . . . . . . . . . . . . . . . . . . . . . . Retrieved Matter . | . . . . . . . . . . . . . . . . . . . . . . . . . . Retrieved Components 4 | . . . . . 4 . . . . . . . . . . . . . . . . . . . . Parts Scanalyzed . | . . . . . . . . . . . . . . . . . . . . . . . . . . Part Schematics Acquired . | . . . . . . . . . . . . . . . . . . . . . . . . . . Parts Damaged . | . . . . . . . . . . . . . . . . . . . . . . . . . . Bothacking | -11 -10 -10 -8 -8 -8 -8 -7 -7 -6 -6 -6 -6 -6 -6 -5 -5 -5 -5 -4 -4 -3 -3 -2 -2 -1 ------------ Run | Yrd Mat Sub Mat Gar Mat Gar Fac Gar Fac Was Fac Gar Fac Gar Fac Gar Fac Gar Fac Gar Res Gar Res Tes Acc Used RIF Installer 9 | . . . . 2 . 1 . 1 . . . 1 . . . . . 2 . 1 . 1 . . . Hotswap 1 | . . . . . . . . . . . . 1 . . . . . . . . . . . . . Command Fork 1 | . . . . . . 1 . . . . . . . . . . . . . . . . . . . Signal Jammer 1 | . . . . . . . . . . . . . . . . . . 1 . . . . . . . Zone Cloak 2 | . . . . . . . . . . . . . . . . . . 1 . . . 1 . . . Structural Interface 1 | . . . . 1 . . . . . . . . . . . . . . . . . . . . . Program Shield 1 | . . . . . . . . . . . . . . . . . . . . 1 . . . . . Autoassimilate 1 | . . . . . . . . 1 . . . . . . . . . . . . . . . . . Robots Hacked 76 | . . . . . 3 . 3 1 1 5 1 10 5 15 . 3 3 1 2 9 3 4 1 6 . Non-combat 9 | . . . . . . . 1 . 1 . . . 1 . . . 1 . 1 . 2 . 1 1 . Combat 67 | . . . . . 3 . 2 1 . 5 1 10 4 15 . 3 2 1 1 9 1 4 . 5 . Autoassimilated 11 | . . . . . . . . . . . 1 1 2 . . . . 1 1 3 . 2 . . . Robot Hacks Applied 69 | . . . . . 3 . 3 1 1 5 . 9 4 15 . 3 5 . 1 6 3 2 1 7 . parse_system 5 | . . . . . . . 1 . . . . 1 . . . . 1 . . 1 . . . 1 . find_chute 1 | . . . . . . . 1 . . . . . . . . . . . . . . . . . . map_earth 1 | . . . . . . . . . . . . . . . . . . . . . 1 . . . . purge_threat 3 | . . . . . . . . . . . . . . . . . 3 . . . . . . . . block_reporting 1 | . . . . . . . . . 1 . . . . . . . . . . . . . . . . map_route 5 | . . . . . . . . . . . . . 1 . . . . . 1 . 1 . 1 1 . disable_scanner 1 | . . . . . . . . . . . . . . . . . . . . . . . . 1 . report_analyses 1 | . . . . . . . . . . . . . . . . . . . . . . . . 1 . ignore_targets 5 | . . . . . . . . . . 5 . . . . . . . . . . . . . . . find_garrison 3 | . . . . . . . 1 . . . . . 1 . . . 1 . . . . . . . . scatter_targeting 2 | . . . . . . . . . . . . . 1 1 . . . . . . . . . . . disrupt_area 1 | . . . . . . . . . . . . . . 1 . . . . . . . . . . . spike_heat 3 | . . . . . . . . . . . . . . 2 . . . . . 1 . . . . . amplify_resonance 6 | . . . . . . . . . . . . 2 . 1 . . . . . 1 1 1 . . . wipe_record 1 | . . . . . . . . . . . . 1 . . . . . . . . . . . . . disable_weapons 1 | . . . . . 1 . . . . . . . . . . . . . . . . . . . . go_dormant 1 | . . . . . . . . . . . . . . 1 . . . . . . . . . . . overwrite_iff 6 | . . . . . . . . . . . . 1 . . . . . . . 1 . 1 . 3 . streamctrl_high 2 | . . . . . 1 . . . . . . . . 1 . . . . . . . . . . . formatsys_high 20 | . . . . . 1 . . 1 . . . 4 1 8 . 3 . . . 2 . . . . . Relay Couplers Released 73 | . . . . 7 . 4 . 10 . . 4 8 2 14 . 8 . 7 . 9 . . . . . Machine Destruction 65 | . . . . 7 . 4 . 10 . . . 8 2 14 . 8 . 3 . 9 . . . . . Programmers 8 | . . . . . . . . . . . 4 . . . . . . 4 . . . . . . . Attached 25 | . . . . . 1 . 1 . 1 1 . 2 1 5 1 1 2 2 . 2 . 2 3 . . Fabnet Peak Effective % . | . . . . . . . . . . . . . . . . . . . . . . . . . . Robots Rewired 20 | . . . . 3 . . 5 . . . . . . . . 10 . 2 . . . . . . . Allies Hacked 1 | . . . . . . . . . . . . . 1 . . . . . . . . . . . . Hacks Repelled . | . . . . . . . . . . . . . . . . . . . . . . . . . . Allies | -11 -10 -10 -8 -8 -8 -8 -7 -7 -6 -6 -6 -6 -6 -6 -5 -5 -5 -5 -4 -4 -3 -3 -2 -2 -1 -------- Run | Yrd Mat Sub Mat Gar Mat Gar Fac Gar Fac Was Fac Gar Fac Gar Fac Gar Fac Gar Fac Gar Res Gar Res Tes Acc Total Allies 80 | . . . . 3 2 . 5 1 . 18 1 6 4 9 . 13 . 5 1 6 . 3 . 3 . Largest Group 18 | . . . . 3 3 . 5 2 1 18 11 8 4 3 . 10 10 12 7 6 . 1 . 2 . Highest-Rated Group 876 | . . . . 48 48 . 128 40 32 638 442 320 155 119 . 646 643 876 333 285 . 116 . 128 . Highest-Rated Ally 148 | . . . . 16 16 . 40 32 32 50 50 50 41 47 . 148 148 148 85 85 . 116 . 69 . Total Orders . | . . . . . . . . . . . . . . . . . . . . . . . . . . Ally Attacks 642 | . . . . . 47 . 20 17 2 107 47 47 41 53 . 68 27 99 35 24 . 3 . 5 . Total Damage 20531 | . . . . . 539 . 390 362 70 4931 1527 1267 1803 1158 . 2395 953 2751 942 952 . 244 . 247 . Kills 142 | . . . . . 7 . 5 4 . 13 18 4 16 7 . 17 7 27 7 6 . 2 . 2 . Allies Corrupted . | . . . . . . . . . . . . . . . . . . . . . . . . . . Allies Melted 2 | . . . . . . . . . . . . 1 . . . . . 1 . . . . . . . Intel | -11 -10 -10 -8 -8 -8 -8 -7 -7 -6 -6 -6 -6 -6 -6 -5 -5 -5 -5 -4 -4 -3 -3 -2 -2 -1 ------- Run | Yrd Mat Sub Mat Gar Mat Gar Fac Gar Fac Was Fac Gar Fac Gar Fac Gar Fac Gar Fac Gar Res Gar Res Tes Acc Active Infowar (turns) 1827 | . . . 531 79 . . 321 297 . . . . . . . . . . . . . . 599 . . Sensors 610 | . . . 531 79 . . . . . . . . . . . . . . . . . . . . . Terrain 599 | . . . . . . . . . . . . . . . . . . . . . . . 599 . . Seismic 618 | . . . . . . . 321 297 . . . . . . . . . . . . . . . . . Robot Analysis Total . | . . . . . . . . . . . . . . . . . . . . . . . . . . Derelict Logs Recovered . | . . . . . . . . . . . . . . . . . . . . . . . . . . Drone Launches . | . . . . . . . . . . . . . . . . . . . . . . . . . . Drone Recoveries . | . . . . . . . . . . . . . . . . . . . . . . . . . . Exploration | -11 -10 -10 -8 -8 -8 -8 -7 -7 -6 -6 -6 -6 -6 -6 -5 -5 -5 -5 -4 -4 -3 -3 -2 -2 -1 ------------- Run | Yrd Mat Sub Mat Gar Mat Gar Fac Gar Fac Was Fac Gar Fac Gar Fac Gar Fac Gar Fac Gar Res Gar Res Tes Acc Turns Passed 18729 | 69 1394 1275 798 1290 936 521 421 583 30 817 582 1033 908 1091 89 878 168 1389 374 633 761 258 1566 517 348 Spaces Moved 9288 | 41 689 506 283 591 372 299 239 293 17 381 286 438 402 471 66 417 85 668 202 328 399 133 918 228 536 Core 451 | 5 . . . . . . . . . . . . . . . . . . . . . 64 125 . 257 Treads 3398 | 36 689 506 212 427 367 . . . . . . 111 . 134 . 1 . . . 222 399 65 97 114 18 Legs 53 | . . . . . . . . . . . . . . . . . . . . . . 4 . 30 19 Wheels 5153 | . . . 71 164 5 299 239 293 17 381 286 327 402 337 66 416 85 668 202 106 . . 696 56 37 Hover . | . . . . . . . . . . . . . . . . . . . . . . . . . . Flight 233 | . . . . . . . . . . . . . . . . . . . . . . . . 28 205 Fastest Speed 34 | 50 160 160 155 155 145 145 145 145 160 160 190 150 170 130 130 130 145 145 145 145 162 50 50 45 34 Average Speed 158 | 146 160 225 218 161 209 145 145 147 160 175 190 188 189 170 130 132 145 145 145 156 164 114 132 148 56 Slowest Speed 1200 | 160 160 320 320 240 240 145 145 160 160 190 190 225 190 225 130 305 145 145 145 162 270 1200 250 260 200 Overloaded Moves . | . . . . . . . . . . . . . . . . . . . . . . . . . . Propulsion Burnouts . | . . . . . . . . . . . . . . . . . . . . . . . . . . Robots Hopped 1 | . . . . . . . . . . . . . . 1 . . . . . . . . . . . Potential Cave-ins . | . . . . . . . . . . . . . . . . . . . . . . . . . . Cave-ins Triggered 1 | . . . . . . . . . . . . . 1 . . . . . . . . . . . . Exploration Rate (%) 35 | 4 97 36 25 62 33 48 10 48 1 97 12 75 18 61 2 57 5 76 6 47 12 30 22 32 17 Regions Visited 25 Branch Regions 2 Pre-discovered Areas . | . . . . . . . . . . . . . . . . . . . . . . . . . . Known Exits Taken 9 | . . . 1 . 1 . 1 . . . 1 . 1 . 1 . 1 . 1 . 1 . . . . Unknown Exits Taken 5 | 1 1 1 . . . . . . . . . . . . . . . . . . . . 1 1 . Scrap Searched 2 | . . 2 . . . . . . . . . . . . . . . . . . . . . . . Spaces Dug 3 | . . . . . . . . 2 . . . . . . . . . . 1 . . . . . . Terrain Destroyed 266 | . . . . 2 16 . . 19 . 1 . 38 23 2 . 3 . 4 1 8 5 3 26 115 . Melee . | . . . . . . . . . . . . . . . . . . . . . . . . . . Projectile 46 | . . . . 2 . . . . . 1 . . . 1 . 3 . 4 1 8 5 3 12 6 . AOE 218 | . . . . . 16 . . 19 . . . 38 23 . . . . . . . . . 14 108 . Terrain Rammed . | . . . . . . . . . . . . . . . . . . . . . . . . . . Walls Destroyed . | . . . . . . . . . . . . . . . . . . . . . . . . . . Machines Disabled . | . . . . . . . . . . . . . . . . . . . . . . . . . . Actions | -11 -10 -10 -8 -8 -8 -8 -7 -7 -6 -6 -6 -6 -6 -6 -5 -5 -5 -5 -4 -4 -3 -3 -2 -2 -1 --------- Run | Yrd Mat Sub Mat Gar Mat Gar Fac Gar Fac Was Fac Gar Fac Gar Fac Gar Fac Gar Fac Gar Res Gar Res Tes Acc Total 12016 | 47 852 577 390 786 457 335 283 395 20 525 316 544 509 675 69 714 127 1001 263 397 483 206 1153 319 573 Wait 923 | . 79 21 44 45 2 . 3 7 . 107 20 4 35 39 . 144 32 166 28 7 54 8 59 11 8 Move 9270 | 40 688 505 283 590 372 298 239 292 17 380 286 437 402 468 66 416 85 667 202 327 398 132 917 227 536 Hop 1 | . . . . . . . . . . . . . . 1 . . . . . . . . . . . Pick Up 137 | . 9 3 6 14 8 4 1 4 . 7 . 8 8 13 . 9 . 11 3 5 2 . 19 2 1 Fast Attach 140 | 6 1 3 12 6 2 1 3 3 . 4 . 8 7 6 1 3 . 6 1 1 3 4 37 12 10 Attach 104 | . 4 5 2 7 2 2 3 6 1 2 . 6 6 11 1 2 . 3 2 5 1 12 10 6 5 Detach 23 | . . 1 4 . 2 . 2 2 . . . 1 1 1 1 1 . . . . . . 3 1 3 Swap 157 | 1 . 2 3 8 13 2 5 9 1 5 3 15 10 18 . 10 4 17 6 2 5 3 10 5 . Drop 156 | . . 2 4 13 15 3 1 3 . 12 2 9 8 10 . 5 . 18 2 1 3 5 32 4 4 Fire 858 | . 71 35 32 68 41 25 26 23 1 8 4 56 32 90 . 34 6 57 19 49 17 42 66 51 5 Melee . | . . . . . . . . . . . . . . . . . . . . . . . . . . Ram 1 | . . . . . . . . . . . . . . . . . . . . . . . . . 1 Kick . | . . . . . . . . . . . . . . . . . . . . . . . . . . Crush . | . . . . . . . . . . . . . . . . . . . . . . . . . . Escape Stasis 128 | . . . . . . . . 40 . . . . . 18 . 24 . 46 . . . . . . . Rewire 104 | . . . . 35 . . . . . . 1 . . . . 66 . 2 . . . . . . . Trap . | . . . . . . . . . . . . . . . . . . . . . . . . . . Miscellaneous 14 | . . . . . . . . 6 . . . . . . . . . 8 . . . . . . . Route ------- -11/Scrapyard -10/Materials (discovered 6 exits: *Mat x3 / [*Min x2] / [*Sub]) -10/Subcaves -8/Materials -8/Garrison (discovered 2 exits: *Mat x2) -8/Materials (discovered 2 exits: *Fac / Gar) -8/Garrison -7/Factory -7/Garrison -6/Factory -6/Waste -6/Factory -6/Garrison (discovered 2 exits: *Fac x2) -6/Factory -6/Garrison -5/Factory -5/Garrison -5/Factory -5/Garrison (discovered 2 exits: *Fac x2) -4/Factory -4/Garrison -3/Research -3/Garrison -2/Research -2/Testing -1/Access History --------- Turn | Location | Event 7 | -11/Scrapyard | Discovered new exit (range 15) 70 | -11/Scrapyard | Entered Materials 70 | -10/Materials | Discovered new exit (range 7) 318 | -10/Materials | Build established: Mutant 348 | -10/Materials | Identified exit to Materials 398 | -10/Materials | Discovered new exit (range 13) 670 | -10/Materials | Derelicts attacked the area 1052 | -10/Materials | Repaired Lgt. Treads 1451 | -10/Materials | Discovered new exit (range 8) 1464 | -10/Materials | Entered Subcaves 1465 | -10/Subcaves | Approached by a straggling Scientist 1705 | -10/Subcaves | Disturbed a concealed Subdweller 1951 | -10/Subcaves | Core integrity fell below 50% 2439 | -10/Subcaves | A swath of the cavern ceiling suddenly collapsed 2625 | -10/Subcaves | Shifting Twisted Machinery released Riot Gun 2642 | -10/Subcaves | Shifting Twisted Machinery released Flamer 2645 | -10/Subcaves | Shifting Twisted Machinery released Sub. Beam Cannon 2645 | -10/Subcaves | Shifting Twisted Machinery released Sub. Laser 2726 | -10/Subcaves | Discovered new exit (range 6) 2739 | -10/Subcaves | Entered Materials 2739 | -8/Materials | Evolved 4 slots: Propulsion x1, Utility x2, Weapon x1 3248 | -8/Materials | Central database locked down 3299 | -8/Materials | Build established: Skirmisher 3412 | -8/Materials | Garrison activated, responded to threat 3537 | -8/Materials | Identified exit to Garrison 3537 | -8/Materials | Entered Garrison 3571 | -8/Garrison | Triggered checkpoint 3635 | -8/Garrison | Garrison Relay disabled 3847 | -8/Garrison | Triggered checkpoint 3915 | -8/Garrison | Triggered checkpoint 3999 | -8/Garrison | Triggered checkpoint 4029 | -8/Garrison | Discovered new exit (range 13) 4065 | -8/Garrison | Triggered checkpoint 4145 | -8/Garrison | Installed Relay Interface Framework 4181 | -8/Garrison | Build established: Scavenger-Tank 4245 | -8/Garrison | Expanded RIF knowledge: Structural Interface 4443 | -8/Garrison | Discovered new exit (range 10) 4558 | -8/Garrison | Garrison Relay disabled 4623 | -8/Garrison | Build established: Scavenger-Gunner 4627 | -8/Garrison | Triggered checkpoint 4827 | -8/Garrison | Entered Materials 4827 | -8/Materials | Accompanied by 3 allies 5382 | -8/Materials | Discovered new exit (range 3) 5550 | -8/Materials | Garrison activated, responded to threat 5689 | -8/Materials | Core integrity fell below 50% 5763 | -8/Materials | Identified exit to Garrison 5763 | -8/Materials | Entered Garrison 5779 | -8/Garrison | Expanded RIF knowledge: Command Fork 5827 | -8/Garrison | Garrison Relay disabled 5881 | -8/Garrison | Lost 3 parts (1u2w) 6019 | -8/Garrison | Triggered checkpoint 6119 | -8/Garrison | Discovered new exit (range 10) 6165 | -8/Garrison | Build established: Bothacker-Gunner 6171 | -8/Garrison | Triggered checkpoint 6284 | -8/Garrison | Entered Factory 6284 | -7/Factory | Evolved 2 slots: Utility x2 6620 | -7/Factory | P-60 Hacker assimilated allied Angel 4a 6676 | -7/Factory | Garrison activated, responded to threat 6705 | -7/Factory | Identified exit to Garrison 6705 | -7/Factory | Entered Garrison 6705 | -7/Garrison | Accompanied by 2 allies 6817 | -7/Garrison | Expanded RIF knowledge: Autoassimilate 6849 | -7/Garrison | Triggered checkpoint 6908 | -7/Garrison | Garrison Relay disabled 7005 | -7/Garrison | Triggered checkpoint 7044 | -7/Garrison | Lost 5 parts (2n2u1w) 7063 | -7/Garrison | Destroyed 12 combat bots 7139 | -7/Garrison | Triggered checkpoint 7172 | -7/Garrison | Garrison Relay disabled 7269 | -7/Garrison | Discovered new exit (range 10) 7288 | -7/Garrison | Entered Factory 7288 | -6/Factory | Accompanied by 1 ally 7288 | -6/Factory | Evolved 2 slots: Utility x2 7318 | -6/Factory | Sucked down chute 7318 | -6/Factory | Entered Waste 7360 | -6/Waste | Spotted C-40 Crusher 7378 | -6/Waste | 1 allies followed down the chute 7385 | -6/Waste | Spotted C-40 Crusher 7391 | -6/Waste | Spotted C-40 Crusher 7415 | -6/Waste | Allies destroyed C-40 Crusher 7417 | -6/Waste | Spotted C-40 Crusher 7491 | -6/Waste | Build established: Botlord-Gunner 7495 | -6/Waste | Spotted C-40 Crusher 7512 | -6/Waste | Spotted C-40 Crusher 7616 | -6/Waste | Discovered new exit (range 13) 7734 | -6/Waste | Warlord forces began an assault 7748 | -6/Waste | Allies destroyed C-40 Crusher 7794 | -6/Waste | Lost 3 allies 7855 | -6/Waste | Allies destroyed C-40 Crusher 7900 | -6/Waste | Allies destroyed C-40 Crusher 8039 | -6/Waste | Build established: Botlord-Tank 8135 | -6/Waste | Entered Factory 8135 | -6/Factory | Accompanied by 11 allies 8590 | -6/Factory | Garrison activated, responded to threat 8707 | -6/Factory | Identified exit to Garrison 8717 | -6/Factory | Entered Garrison 8717 | -6/Garrison | Accompanied by 8 allies 8878 | -6/Garrison | Triggered checkpoint 8887 | -6/Garrison | Triggered checkpoint 8891 | -6/Garrison | Spotted B-75 Beast 8892 | -6/Garrison | Triggered checkpoint 8948 | -6/Garrison | Lost 9 allies 9118 | -6/Garrison | Expanded RIF knowledge: Hotswap 9135 | -6/Garrison | Discovered new exit (range 2) 9175 | -6/Garrison | Triggered checkpoint 9197 | -6/Garrison | Garrison Relay disabled 9424 | -6/Garrison | Lost 3 parts (1p1u1w) 9516 | -6/Garrison | Garrison Relay disabled 9638 | -6/Garrison | Lost 3 parts (1n2w) 9641 | -6/Garrison | Found Gamma Bomb Array 9693 | -6/Garrison | Discovered new exit (range 10) 9731 | -6/Garrison | Spotted Striker 9731 | -6/Garrison | Spotted Striker 9750 | -6/Garrison | Entered Factory 9831 | -6/Factory | Repaired Centrium Wheel 10344 | -6/Factory | Garrison activated, responded to threat 10450 | -6/Factory | Crushed by falling debris 10450 | -6/Factory | Core integrity fell below 50% 10450 | -6/Factory | System corruption reached 10% 10481 | -6/Factory | Lost 4 parts (2u2w) 10523 | -6/Factory | Cargo convoy interrupted 10562 | -6/Factory | Found Prototype Device 10562 | -6/Factory | Identified Exp. Shield Generator 10570 | -6/Factory | Destroyed 7 combat bots 10610 | -6/Factory | Found Exp. Shield Generator 10658 | -6/Factory | Identified exit to Garrison 10658 | -6/Factory | Entered Garrison 10658 | -6/Garrison | Accompanied by 1 ally 10683 | -6/Garrison | Triggered checkpoint 10719 | -6/Garrison | Garrison Relay disabled 10819 | -6/Garrison | Build established: Bothacker-Tank 10837 | -6/Garrison | Garrison Relay disabled 11044 | -6/Garrison | Spotted B-75 Beast 11083 | -6/Garrison | Destroyed B-75 Beast 11286 | -6/Garrison | Triggered checkpoint 11340 | -6/Garrison | Triggered checkpoint 11364 | -6/Garrison | Lost 3 allies 11409 | -6/Garrison | Lost 3 parts (1n1u1w) 11509 | -6/Garrison | Triggered checkpoint 11562 | -6/Garrison | Core integrity fell below 20% 11579 | -6/Garrison | Lost 4 parts (1p1u2w) 11639 | -6/Garrison | Garrison Relay disabled 11706 | -6/Garrison | Discovered new exit (range 7) 11749 | -6/Garrison | Entered Factory 11749 | -5/Factory | Evolved 2 slots: Power x1, Utility x1 11838 | -5/Factory | Identified exit to Garrison 11838 | -5/Factory | Entered Garrison 11867 | -5/Garrison | Triggered checkpoint 11952 | -5/Garrison | Triggered checkpoint 11956 | -5/Garrison | Garrison Relay disabled 12044 | -5/Garrison | Rewired Executioner 12046 | -5/Garrison | Rewired Executioner 12122 | -5/Garrison | Triggered checkpoint 12125 | -5/Garrison | Spotted B-75 Beast 12128 | -5/Garrison | Rewired B-90 Cyclops 12142 | -5/Garrison | Spotted B-90 Cyclops 12150 | -5/Garrison | Allies destroyed B-90 Cyclops 12244 | -5/Garrison | Build established: Botlord-Tank 12248 | -5/Garrison | Garrison Relay disabled 12358 | -5/Garrison | Triggered checkpoint 12370 | -5/Garrison | Triggered checkpoint 12426 | -5/Garrison | Triggered checkpoint 12482 | -5/Garrison | Triggered checkpoint 12503 | -5/Garrison | Discovered new exit (range 3) 12716 | -5/Garrison | Entered Factory 12716 | -5/Factory | Accompanied by 10 allies 12855 | -5/Factory | Identified exit to Garrison 12884 | -5/Factory | Entered Garrison 12884 | -5/Garrison | Accompanied by 10 allies 12884 | -5/Garrison | Spotted B-75 Beast 12894 | -5/Garrison | Rewired B-90 Cyclops 12898 | -5/Garrison | Allies destroyed B-75 Beast 12925 | -5/Garrison | Rewired B-75 Beast 13096 | -5/Garrison | Triggered checkpoint 13200 | -5/Garrison | Build established: Commander-Tank 13212 | -5/Garrison | Triggered checkpoint 13226 | -5/Garrison | Triggered checkpoint 13262 | -5/Garrison | Allies destroyed Cyclops 6a 13280 | -5/Garrison | Triggered checkpoint 13388 | -5/Garrison | Garrison Relay disabled 13519 | -5/Garrison | Discovered new exit (range 14) 13683 | -5/Garrison | Build established: Botlord-Gunner 13689 | -5/Garrison | Triggered checkpoint 13697 | -5/Garrison | Allies destroyed Executioner 13714 | -5/Garrison | Found Prototype Processor 13714 | -5/Garrison | Identified Exp. Core Analyzer 13819 | -5/Garrison | Rescued a captive Derelict 13820 | -5/Garrison | Rescued a captive Derelict 13855 | -5/Garrison | Discovered new exit (range 5) 13902 | -5/Garrison | Triggered checkpoint 13940 | -5/Garrison | Expanded RIF knowledge: Signal Jamming 13942 | -5/Garrison | Destroyed Executioner 13973 | -5/Garrison | Lost 3 allies 14056 | -5/Garrison | Expanded RIF knowledge: Zone Cloak 14273 | -5/Garrison | Entered Factory 14273 | -4/Factory | Accompanied by 7 allies 14273 | -4/Factory | Evolved 2 slots: Propulsion x1, Utility x1 14355 | -4/Factory | P-70 Sage assimilated allied XR-8BB(g) 14523 | -4/Factory | First assault squad dispatched 14621 | -4/Factory | Identified exit to Garrison 14647 | -4/Factory | Entered Garrison 14647 | -4/Garrison | Accompanied by 4 allies 14730 | -4/Garrison | Garrison Relay disabled 14840 | -4/Garrison | Triggered checkpoint 14840 | -4/Garrison | Triggered checkpoint 14892 | -4/Garrison | Lost 8 allies 14895 | -4/Garrison | Triggered checkpoint 14903 | -4/Garrison | Destroyed 11 combat bots 14970 | -4/Garrison | Discovered new exit (range 10) 15085 | -4/Garrison | Expanded RIF knowledge: Program Shield 15106 | -4/Garrison | Garrison Relay disabled 15130 | -4/Garrison | Build established: Botlord-Tank 15280 | -4/Garrison | Entered Research 15280 | -3/Research | Evolved 2 slots: Propulsion x1, Utility x1 15475 | -3/Research | Identified exit to DSF 15638 | -3/Research | Identified exit to Garrison 16030 | -3/Research | First assault squad dispatched 16041 | -3/Research | Entered Garrison 16056 | -3/Garrison | Expanded RIF knowledge: Zone Cloak 16101 | -3/Garrison | Triggered checkpoint 16124 | -3/Garrison | Spotted B-86 Titan 16179 | -3/Garrison | System corruption reached 10% 16262 | -3/Garrison | Core integrity fell below 50% 16281 | -3/Garrison | Core integrity fell below 20% 16295 | -3/Garrison | Discovered new exit (range 10) 16299 | -3/Garrison | Entered Research 16299 | -2/Research | Evolved 2 slots: Propulsion x1, Utility x1 16318 | -2/Research | Lost 27 parts (4p3n11u9w) 16467 | -2/Research | Build established: Mutant 16842 | -2/Research | Found Powered Armor 16855 | -2/Research | Found Powered Armor 16933 | -2/Research | Build established: Scavenger-Tank 16989 | -2/Research | Found Prototype Processor 16989 | -2/Research | Identified Exp. Melee Analysis Suite 17095 | -2/Research | Found Gamma Bomb Array 17456 | -2/Research | System corruption reached 10% 17513 | -2/Research | Discovered new exit (range 47) 17806 | -2/Research | Found Prototype Launcher 17822 | -2/Research | Destroyed 7 combat bots 17865 | -2/Research | Entered Testing 18123 | -2/Testing | Lost 5 parts (1p2u2w) 18263 | -2/Testing | Scanned by Researcher 18286 | -2/Testing | Lost 6 parts (1p2n2u1w) 18313 | -2/Testing | Identified Tactical Quantum Warhead 18377 | -2/Testing | System corruption reached 30% 18381 | -2/Testing | Discovered new exit (range 4) 18382 | -2/Testing | Entered Access 18382 | -1/Access | Evolved 2 slots: Utility x1, Weapon x1 18410 | -1/Access | Lost 12 parts (2p4n2u4w) 18492 | -1/Access | Lost 4 parts (1n3u) 18515 | -1/Access | Spotted B-99 Colossus 18523 | -1/Access | System corruption reached 10% 18549 | -1/Access | Lost 3 parts (2n1u) 18560 | -1/Access | Core integrity fell below 50% 18626 | -1/Access | Lost 6 parts (1p4n1w) 18632 | -1/Access | Search patrols dispatched 18673 | -1/Access | Core integrity fell below 20% 18730 | -1/Access | Destroyed by C-57 Dissector with Dual-blade Saw Last Messages --------------- [Achievement: Physics Hates This One Trick] 18683_ Slug penetrates Wall. 18683_ Penetrated by Slug. 18695_ System corrupted: Biometal Heavy Treads rejected. 18697_ Penetrated by Slug. 18699_ C-57 Dissector knocked back. 18701_ Knocked back. 18701_ U-05 Engineer system corrupted by crushing effect. 18702_ U-05 Engineer system terminally corrupted. 18707_ Wheel severed. 18708_ Relay Coupler [Sentry] severed. 18714_ U9ZEYWXKXJ 9%V%HEREAB NQLPHWHVQCAN7AV% 18715_ K-01 Serf suffers critical hit (Destroy). 18716_ RIF reveals location of hidden door. 18718_ Slug penetrates K-01 Serf. 18718_ Slug penetrates Wall. 18727_ Biometal Heavy Treads destroyed. Map ----- +----------------------------------------------------+ | ??????????????????????????????????? | | !! ??????????????????????????????????? | | !! #?????????????????????????????????? | | #?????????????????????????????????? | | #?????????????????????????????????? | | #####????????????????????????????????????????? | | ?????????????????????????????????????????????? | | ?????????????????????????????????????????????? | | ########????###??????????????????????????????? | | #??? #??????????????????????????????? | | #??? #??????????????????????????????? | | ##### #?? #??????????????????????????????? | | ????# #?? #??????????????????????????????? | | ????# #? #??????????????????????????????? | | ????# #? #??????????????????????????????? | | ???## # = = +??????????????????????????????? | | ???+ # #??????????????????????????????? | | ???## / #??????????????????????????????? | | ????# # #??????????????????????????????? | | ????# # +??????????????????????????????? | | ????# #? #??????????????????????????????? | | ????# #? #??????????????????????????????? | | ???## ##?#####??????????????????????????????? | | ???# #############+##########+#+##????????? | | ???+ #????????? | | ???# c cc@ +????????? | | ???# ##### ###### #############???????????? | | ???## ##???#+#????#+#???????????????????????? | | ????# #?????????????????????????????????????? | | ????# #?????????????????????????????????????? | | ????# +?????????????????????????????????????? | | ????# #?????????????????????????????????????? | | ????# #?????????????????????????????????????? | | ????# #?????????????????????????????????????? | | ????# #?????????????????????????????????????? | | ????# #?????????????????????????????????????? | | ????# #?????????????????????????????????????? | | ????# #?????????????????????????????????????? | | ????? ??????????????????????????????????????? | | ????? ??????????????????????????????????????? | | ????? ??????????????????????????????????????? | | ?????????????????????????????????????????????? | | ?????????????????????????????????????????????? | | ?????????????????????????????????????????????? | | ?????????????????????????????????????????????? | | ?????????????????????????????????????????????? | | ?????????????????????????????????????????????? | | ?????????????????????????????????????????????? | | ?????????????????????????????????????????????? | | ?????????????????????????????????????????????? | +----------------------------------------------------+ Best States ------------- Heat Dissipation 87 Coolant Potential 65 Energy Generation 66 Energy Capacity 800 Matter Stores 500 Matter Capacity 500 Sight Range 16 Robot Scan Range 15 Terrain Scan Range 24 Terrain Scan Density 10 Power Amplification 40 Armor Coverage 800 Resistance: TH 30 Resistance: EM 20 Core Shielding 40 Point Defense Rating 240 Weapon Cycling 25 Phase Shifting 15 Evasion (%) 70 Targeting Accuracy 8 Target Analysis 12 Core Analysis 8 Recoil Reduction 6 Kinecelleration 40 Relay Coupler Types 5 Relay Coupler Value 125 Item Schematics ----------------- Neutron Missile Launcher | -2/Testing | Archive Robot Schematics ------------------ None Fabricated ------------ Nothing Repaired ---------- Lgt. Treads | 8% | -10/Materials Centrium Wheel | 18% | -6/Factory Studied --------- Gatling Laser | -8/Materials | Hacked Hyb. Deuterium Engine | -8/Materials | Hacked Lgt. Assault Rifle | -8/Materials | Hacked Alien Tech Used ----------------- None Achievements -------------- Hack The Planet Hackerman Let Me Out Of Here Physics Hates This One Trick Satisfying Taming Of The Crushers Versatile Watcher Gambling You Will Be Upgraded Challenges ------------ None Game ------ Seed NanofilamentsMeleeHoverbase Manual? 0 Play Time 03:07:13 Cumulative 234.8 hours Start 2025.11.07 @ 17:04:54 End 2025.11.07 @ 22:39:08 Sessions 9 Manual Loads 0 Difficulty Rogue Special Mode None Game No. 187 Rogue 187 Adventurer 0 Explorer 0 Win Type - Total 6 Types 4/0/1/1/0/0/0/0/0/0 Lore% 82 Gallery% 72 Achievement% 50 Wizard Run 0 Options --------- Layout 1 ASCII 0 Keyboard 0 Movement Numpad Keybinds 0 Fullscreen 1 Font 24/Smallcaps Map View 50x35 Zoom Use 0% Tactical HUD 1 Map Filters NONE Filters NONE Steam 1 RUN: fa3aec9e-816f-4ed5-9f3d-c709f055dcbf